Cogmind - Beta 14 @@@ ROGUE MODE // 2024.08.09 @ 19:12:19 Player: opdo Result: Destroyed by Z5-JGQ(R) with Subdweller Machine Gun Performance ------------- Evolutions (0) 0 Regions Visited (2) 400 Robots Destroyed (19) 95 Value Destroyed (531) 531 Prototype IDs (0) 0 Alien Tech Used (0) 0 Bonus (0) 0 TOTAL SCORE: 1026 Bonus ------- None Cogmind --------- Core Integrity 0/250 Matter 10/300 Energy 100/100 System Corruption 5% Temperature Cool (0) Movement Treading (160) Location -10/Subcaves Parts ------- > --- POWER (1) -------- (None) > --- PROPULSION (2) --- Spiked Treads > --- UTILITY (2) ------ (None) > --- WEAPON (2) ------- Battle Cannon > --- INVENTORY (5) ---- Subdweller Power Source Tractor Beam Subdweller Machine Gun Subdweller Shrapnel Launcher Mining Laser Peak State ------------ > --- POWER ------------ Subdweller Power Source > --- PROPULSION ------- Aluminum Leg Aluminum Leg > --- UTILITY ---------- Small Storage Unit Improved Terrain Scanner > --- WEAPON ----------- Medium Laser Barrage Gun > --- INVENTORY -------- Light Ion Engine Wheel Subdweller Optics Tractor Beam Assault Rifle Light Assault Rifle Mining Laser Scrap Shield Fragment [Rating: 13] Favorites ----------- Power Subdweller Power Source Engine Subdweller Power Source Propulsion Aluminum Leg Treads Light Treads Leg Aluminum Leg Wheel Wheel Utility Small Storage Unit Device Improved Terrain Scanner Storage Small Storage Unit Protection Scrap Shield Weapon Assault Rifle Energy Gun Medium Laser Ballistic Gun Assault Rifle Ballistic Cannon Battle Cannon Launcher Subdweller Shrapnel Launcher Special Weapon Mining Laser Build | -11 -10 -10 ------- Run | Yrd Mat Sub Slots Evolved . | . . . Power . | . . . Propulsion . | . . . Utility . | . . . Weapon . | . . . Parts Attached 27 | 7 2 18 Power 3 | 1 . 2 Engine 3 | 1 . 2 Core . | . . . Reactor . | . . . Propulsion 6 | 2 . 4 Treads 2 | . . 2 Leg 3 | 2 . 1 Wheel 1 | . . 1 Hover . | . . . Flight . | . . . Utility 4 | 2 . 2 Device 2 | 1 . 1 Storage 1 | 1 . . Processor . | . . . Hackware . | . . . Protection 1 | . . 1 Artifact . | . . . Weapon 14 | 2 2 10 Energy Gun 1 | . . 1 Energy Cannon . | . . . Ballistic Gun 8 | 2 1 5 Ballistic Cannon 2 | . . 2 Launcher 1 | . . 1 Special Weapon 2 | . 1 1 Impact Weapon . | . . . Slashing Weapon . | . . . Piercing Weapon . | . . . Special Melee Weapon . | . . . Unidentified Prototypes . | . . . Parts Lost 11 | . . 11 Power 1 | . . 1 Propulsion 4 | . . 4 Utility 2 | . . 2 Weapon 4 | . . 4 Highest Loss Streak 3 | . . 3 To Critical Strikes . | . . . Average Slot Usage (%) 89 | . 100 81 Engine 13 | . 14 13 Treads 3 | . . 6 Leg 18 | . 28 11 Device 9 | . 14 7 Storage 11 | . 14 9 Protection 1 | . . 2 Energy Gun 2 | . . 3 Ballistic Gun 20 | . 27 15 Ballistic Cannon 3 | . . 5 Special Weapon 1 | . . 2 Peak Build Rating 13 | 9 9 13 Average Rating 9 | 5 9 10 On Entrance 6 | . 9 9 Naked Turns . | . . . Heaviest Build 30 | 12 12 30 Greatest Support 20 | 20 20 20 Greatest Overweight (x) 6 | . . 6 Average Overweight (x) . | . . . Largest Inventory Capacity 8 | 8 8 8 Average Capacity 7 | 7 8 7 Most Carried 8 | 5 7 8 Average Carried 6 | 3 5 6 Final Capacity 8 | 8 8 5 Final Carried 7 | 5 7 5 Class Distribution -------------------- 90% | Mutant 9% | Subdweller-Mutant Dominant Class ---------------- Mutant | -10/Materials Mutant | -10/Subcaves Resources | -11 -10 -10 ----------- Run | Yrd Mat Sub Matter Collected 665 | 298 64 303 Remotely . | . . . Salvage Created 688 | 152 161 375 Parts 54 | 10 14 30 Haulers Intercepted . | . . . Recyclers Shooed . | . . . Parts Field Recycled . | . . . Retrieved Matter . | . . . Parts Self-Destructed 7 | . . 7 Prevented . | . . . Kills | -11 -10 -10 ------- Run | Yrd Mat Sub Combat Hostiles Destroyed 13 | . 2 11 Guns 10 | . 2 8 Cannons 2 | . . 2 AOE 1 | . . 1 Classes Destroyed 7 | 2 2 3 Builder 3 | . 3 . Tunneler 2 | 2 . . Recycler 1 | 1 . . Swarmer 1 | . . 1 Grunt 2 | . 2 . Sentry 1 | . . 1 Subdweller 9 | . . 9 Best Kill Streak 2 | 2 2 2 Combat Bots Only 2 | . 2 2 Max Kills in Single Turn 1 | 1 1 1 Gunslinging . | . . . Exploded 1 | . . 1 Melee . | . . . Uniques/NPCs Destroyed . | . . . Combat | -11 -10 -10 -------- Run | Yrd Mat Sub Hostile Shots Fired 112 | . 8 104 Missed 35 | . 1 34 Damage Taken 1583 | . 102 1481 Core 272 | . . 272 Absorbed by Shields . | . . . Core Remaining (%) 100 | 100 . . Volleys Fired 89 | 8 17 64 Largest 2 | 2 2 2 Hottest 120 | 40 100 120 Shots Fired 167 | 16 32 119 Gun 131 | 16 30 85 Cannon 28 | . . 28 Launcher 5 | . . 5 Special 3 | . 2 1 Kinetic 149 | 16 30 103 Thermal 18 | . 2 16 Explosive . | . . . Electromagnetic . | . . . Robot Hit Streak 12 | 3 5 12 Robot Miss Streak 4 | 4 2 2 Penetration Max . | . . . Secondary Targets . | . . . Shots Hit Robots 108 | 8 18 82 Core Hits 37 | 6 10 21 Critical Kills . | . . . Critical Parts Destroyed . | . . . Critical Strikes 3 | . . 3 Burn 2 | . . 2 Blast 1 | . . 1 Melee Attacks . | . . . Impact . | . . . Slashing . | . . . Piercing . | . . . Sneak Attacks . | . . . Combat Hostiles . | . . . Follow-up Attacks . | . . . Damage Inflicted 1706 | 114 202 1390 Guns 1072 | 114 202 756 Cannons 380 | . . 380 Explosions 236 | . . 236 Melee . | . . . Ramming 18 | . . 18 Kinetic 1600 | 114 202 1284 Thermal 88 | . . 88 Explosive . | . . . Electromagnetic . | . . . Impact . | . . . Slashing . | . . . Piercing . | . . . Highest Corruption 5 | . 5 5 Average Corruption 4 | . 4 5 Corruption Purged . | . . . Corruption Blocked . | . . . Effects 32 | . 1 31 Message Errors 8 | . 1 7 Matter Fused 4 | . . 4 Heat Flow Errors 4 | . . 4 Energy Discharges 5 | . . 5 Parts Rejected 1 | . . 1 Parts Fused 2 | . . 2 Data Loss (minor) 3 | . . 3 Misfires 1 | . . 1 Weapon Failures 4 | . . 4 Overload Shots . | . . . Overflow Damage . | . . . Projectiles . | . . . Explosions . | . . . Melee . | . . . Knockbacks 4 | . . 4 Impact . | . . . Kinetic 4 | . . 4 Secondary . | . . . Self-Inflicted Damage 25 | . . 25 Shots 1 | . . 1 Rammed 4 | . . 4 Targets Rammed 4 | . . 4 Kicked . | . . . Crushed . | . . . Highest Temperature 221 | . 22 221 Average Temperature 49 | . 10 72 Received Heat Transfer 252 | . 57 195 Siege Activations . | . . . Robots Corrupted . | . . . Combat Hostiles . | . . . Parts Fried . | . . . Impact Corruptions . | . . . Robots Melted . | . . . Combat Hostiles . | . . . Parts Melted 2 | . . 2 Heat Transferred 407 | . . 407 Parts Sabotaged . | . . . Parts Stolen . | . . . Parts Stripped . | . . . Power Chain Reactions . | . . . Alert | -11 -10 -10 ------- Run | Yrd Mat Sub Peak Influence 94 | 15 94 . Initial 9 | . 9 . Average 27 | 4 32 . Maximum Alert Level . | . . . Low Security (%) 100 | 100 100 . Level 1 . | . . . Level 2 . | . . . Level 3 . | . . . Level 4 . | . . . Level 5 . | . . . High Security . | . . . Max Security . | . . . Squads Dispatched . | . . . Investigation . | . . . Extermination . | . . . Reinforcement . | . . . Assault . | . . . Garrison . | . . . Intercept . | . . . Searches Triggered . | . . . Construction Impeded . | . . . Haulers Reinforced . | . . . Active Scanning Responses . | . . . Cargo Convoy Interrupts . | . . . Stealth | -11 -10 -10 --------- Run | Yrd Mat Sub Distress Signals . | . . . Communications Jammed . | . . . Distress Signals . | . . . Times Spotted 17 | . 4 13 Peak Tracking Total 3 | . 2 3 Tactical Retreats . | . . . Traps | -11 -10 -10 ------- Run | Yrd Mat Sub Traps Triggered 5 | . 4 1 Indirectly . | . . . Trap Hack Attempts . | . . . Triggered . | . . . Disarmed . | . . . Reprogrammed . | . . . Reused . | . . . Traps Extracted . | . . . Installed . | . . . Triggered . | . . . Machines | -11 -10 -10 ---------- Run | Yrd Mat Sub Machines Disabled . | . . . Max in Single Turn . | . . . Machines Repaired . | . . . Machines Dismantled . | . . . Machines Sabotaged . | . . . Overloaded Fab Kills . | . . . Hacking | -11 -10 -10 --------- Run | Yrd Mat Sub Machines Accessed 6 | . 6 . Terminals 4 | . 4 . Fabricators . | . . . Repair Stations 1 | . 1 . Recycling Units 1 | . 1 . Scanalyzers . | . . . Garrison Access . | . . . Total Hacks 15 | . 15 . Successful 5 | . 5 . Failed 10 | . 10 . Catastrophic 3 | . 3 . Database Lockouts . | . . . Manual 14 | . 14 . Terminals 13 | . 13 . Fabricators . | . . . Repair Stations 1 | . 1 . Recycling Units 1 | . 1 . Scanalyzers . | . . . Garrison Access . | . . . Terminal Hacks 2 | . 2 . Terminal Index 1 | . 1 . Zone Layout 1 | . 1 . Fabricator Hacks . | . . . Repair Station Hacks 1 | . 1 . Scan Component 1 | . 1 . Recycling Unit Hacks . | . . . Scanalyzer . | . . . Garrison Access Hacks . | . . . Unauthorized Hacks 2 | . 2 . Terminals 2 | . 2 . Botnet 2 | . 2 . Fabricators . | . . . Repair Stations . | . . . Recycling Units . | . . . Scanalyzers . | . . . Garrison Access . | . . . Data Cores Recovered . | . . . Used . | . . . Hacking Detections 5 | . 5 . Full Trace Events . | . . . Feedback Events . | . . . Feedback Blocked . | . . . Robot Schematics Acquired . | . . . Robots Built . | . . . Authchips . | . . . Time . | . . . Total Robot Build Rating . | . . . Part Schematics Acquired . | . . . Parts Built . | . . . Authchips . | . . . Time . | . . . Total Part Build Rating . | . . . Parts Repaired . | . . . Time . | . . . Parts Recycled . | . . . Recycled Matter . | . . . Retrieved Matter . | . . . Retrieved Components . | . . . Parts Scanalyzed . | . . . Part Schematics Acquired . | . . . Parts Damaged . | . . . Bothacking | -11 -10 -10 ------------ Run | Yrd Mat Sub Used RIF Installer . | . . . Robots Hacked . | . . . Non-combat . | . . . Combat . | . . . Robot Hacks Applied . | . . . Relay Couplers Released . | . . . Fabnet Peak Effective % . | . . . Robots Rewired . | . . . Allies Hacked . | . . . Hacks Repelled . | . . . Allies | -11 -10 -10 -------- Run | Yrd Mat Sub Total Allies . | . . . Largest Group . | . . . Highest-Rated Group . | . . . Highest-Rated Ally . | . . . Total Orders . | . . . Ally Attacks . | . . . Total Damage . | . . . Kills . | . . . Allies Corrupted . | . . . Allies Melted . | . . . Intel | -11 -10 -10 ------- Run | Yrd Mat Sub Robot Analysis Total . | . . . Derelict Logs Recovered 1 | . . 1 Drone Launches . | . . . Drone Recoveries . | . . . Exploration | -11 -10 -10 ------------- Run | Yrd Mat Sub Turns Passed 1808 | 133 706 969 Spaces Moved 870 | 82 309 479 Core 60 | 4 . 56 Treads 136 | . . 136 Legs 611 | 78 309 224 Wheels 63 | . . 63 Hover . | . . . Flight . | . . . Fastest Speed 50 | 50 120 95 Average Speed 137 | 116 120 152 Slowest Speed 350 | 120 120 350 Overloaded Moves . | . . . Propulsion Burnouts . | . . . Robots Hopped . | . . . Cave-ins Triggered . | . . . Exploration Rate (%) 31 | 4 58 33 Regions Visited 2 Branch Regions 1 Pre-discovered Areas . | . . . Known Exits Taken . | . . . Unknown Exits Taken 2 | 1 1 . Scrap Searched 4 | . . 4 Spaces Dug 20 | . . 20 Terrain Destroyed 73 | . 1 72 Melee . | . . . Projectile 2 | . 1 1 AOE 71 | . . 71 Terrain Rammed . | . . . Walls Destroyed . | . . . Machines Disabled . | . . . Actions | -11 -10 -10 --------- Run | Yrd Mat Sub Total 1302 | 101 610 591 Wait 290 | . 282 8 Move 868 | 81 308 479 Hop . | . . . Pick Up 14 | 5 1 8 Fast Attach 11 | 7 . 4 Attach 5 | . . 5 Detach . | . . . Swap 11 | . 2 9 Drop 10 | . . 10 Fire 89 | 8 17 64 Melee . | . . . Ram . | . . . Kick . | . . . Crush 4 | . . 4 Escape Stasis . | . . . Rewire . | . . . Trap . | . . . Miscellaneous . | . . . Route ------- -11/Scrapyard -10/Materials (discovered 3 exits: [*Mat x2] / [*Sub]) -10/Subcaves History --------- Turn | Location | Event 16 | -11/Scrapyard | Discovered new exit (range 15) 134 | -11/Scrapyard | Entered Materials 228 | -10/Materials | Discovered new exit (range 4) 310 | -10/Materials | Build established: Mutant 657 | -10/Materials | Discovered new exit (range 10) 698 | -10/Materials | Discovered new exit (range 8) 840 | -10/Materials | Entered Subcaves 955 | -10/Subcaves | Learned Materials garrison access intel 1078 | -10/Subcaves | Disturbed a concealed Subdweller 1245 | -10/Subcaves | Shifting Twisted Machinery released Sub. Power Source 1257 | -10/Subcaves | Shifting Twisted Machinery released Sub. Shrapnel Launcher 1396 | -10/Subcaves | Ambushed by Subdweller buried in earth 1402 | -10/Subcaves | Core integrity fell below 50% 1406 | -10/Subcaves | Ambushed by Subdweller buried in earth 1468 | -10/Subcaves | Core integrity fell below 20% 1809 | -10/Subcaves | Destroyed by Z5-JGQ(R) with Subdweller Machine Gun Last Messages --------------- 01737_ System corrupted: Component data lost. 01737_ Z5-JGQ(R): "SUBSUUUUUB!" 01744_ System corrupted: Battle Cannon jammed. 01747_ Z5-JGQ(R) knocked back. 01760_ Acquired 2 matter. 01763_ System corrupted: Energy discharge (-60). 01765_ Acquired 4 matter. 01770_ Z5-JGQ(R) knocked back. 01772_ Z5-JGQ(R) affixes Scrap Shield Fragment to Scrap Shield. 01781_ Slammed into Z5-JGQ(R). 01784_ Acquired 1 matter. 01789_ Scrap Shield destroyed. 01791_ System corrupted: Energy discharge (-62). 01794_ Slammed into Z5-JGQ(R). 01799_ Sub. Power Source destroyed. 01799_ Z5-JGQ(R) knocked back. 01802_ Sub. Machine Gun shoots sparks and powers down. 01803_ Broken Sub. Machine Gun destroyed. Map ----- +----------------------------------------------------+ | #???? ##?????????????????????????????????????????? | | ##??###??????????????????????????????????????????? | | #???????????????????????????????????????????????? | | ##?????#?????????????????????????????????????????? | | #????????????????????????????????????????????????? | | ##???????????????????????????????????????????????? | | ####????????????????????????????????????????????? | | #????????????????????????????????????????????? | | #????????????????????????????????????????????? | | #????????????????????????????????????????????? | | ##????????????????????????????????????????????? | | ##?????????????????????????????????????????????? | | #???#???#??????????????????????????????????????? | | ##??????????#???????????????????????????????????? | | #?????#????????????????????????????????????????? | | ##??????????????????????????????????????????????? | | &#???????#????#??????????????????????????????????? | | %##?#???????#????????????????###?????????????????? | | !%#????????????????????????## ##????????????????? | | %##????????????????????????# ##???????????????? | | #????????????????????????# #???????????????? | | # ##?????????????????????### #???????????????? | | ?##???????????????????#### #???????????????? | | ???????????#?????????##$## #???????????????? | | ?????????????????????#$ ##< #????????????????? | | ??????????????????????#R%@% #????????????????? | | ???#????#????????????#$ #$# #????????????????? | | ??#??????????????????##$### #????????????????? | | ??????????????????????#### #????????????????? | | ????????????????????????# ##????????????????? | | ????????????????????????# ###?????????????????? | | ????????????????????????## #???????????????????? | | ??#??????????????????????## #???????????????????? | | ?????????????????????????## ##?##???????????????? | | ?????????????????????????# #? #???????????????? | | ???????????#?????????????# ### ##??????????????? | | ??????????????## ????????# #??????????????? | | ??????????????## ????????# #??????????????? | | ???????????#??# ???????# ###????????????? | | #?????????????# ?#####?## #????????????? | | ?????????????## ?# ###### ##????????????? | | ?????????????# ?# #### ###?????????????? | | ????#######??# #?# ## ########????????? | | ##### ##???# ## #??????? | | # ##???# #??????? | | ##??## ## ####??????? | | # # #?### ### #?????????? | | ##### ### #?# #####?????????? | | ????# ## ### #?# #???????????#?? | | ????## ## #?# #?????????????? | +----------------------------------------------------+ Best States ------------- Heat Dissipation 25 Energy Generation 15 Energy Capacity 200 Matter Stores 300 Matter Capacity 300 Sight Range 21 Terrain Scan Range 16 Terrain Scan Density 10 Armor Coverage 800 Evasion (%) 55 Recoil Reduction 1 Item Schematics ----------------- None Robot Schematics ------------------ None Fabricated ------------ Nothing Alien Tech Used ----------------- None Achievements -------------- None Challenges ------------ None Game ------ Seed WeaponMetaTriangulator Manual? 0 Play Time 00:12:03 Cumulative 53.6 hours Start 2024.08.09 @ 19:01:56 End 2024.08.09 @ 19:12:19 Sessions 1 Manual Loads 0 Difficulty Rogue Special Mode None Game No. 156 Rogue 154 Adventurer 2 Explorer 0 Win Type - Total 0 Types 0/0/0/0/0/0/0/0/0 Lore% 36 Gallery% 47 Achievement% 37 Wizard Run 0 Options --------- Layout 2 ASCII 0 Keyboard 0 Movement Arrows Keybinds 0 Fullscreen 2 Font 24/Smallcaps Map View 50x44 Zoom Use 0% Tactical HUD 1 Map Filters NONE Filters NONE Steam 1 RUN: 4f964823-dc9c-4815-a137-c0fb44518bbc